[Event "Titled Tuesday Blitz August 16 Early 2022"]
[White "Ibarra Jerez, Jose Carlos"]
[Black "Vachylia, Andrii"]
[WhiteFideId "2226332"]
[BlackFideId "14137224"]
[WhiteElo "2628"]
[BlackElo "2318"]
[Result "0-1"]
[Round "08"]
[TimeControl "180+1"]
[Date "2022.08.16"]
[WhiteClock "0:00:02"]
[BlackClock "0:00:10"]

1. d4 {[%clk 0:03:00]}  Nf6 {[%clk 0:02:57]} 2. Bg5 {[%clk 0:03:00]}  e6 {[%clk 0:02:56]} 3. e4 {[%clk 0:02:59]}  h6 {[%clk 0:02:56]} 4. Bxf6 {[%clk 0:02:59]}  Qxf6 {[%clk 0:02:57]} 5. c3 {[%clk 0:02:56]}  d6 {[%clk 0:02:57]} 6. Bd3 {[%clk 0:02:55]}  g6 {[%clk 0:02:57]} 7. Ne2 {[%clk 0:02:54]}  Bg7 {[%clk 0:02:57]} 8. f4 {[%clk 0:02:55]}  c5 {[%clk 0:02:55]} 9. Na3 {[%clk 0:02:52]}  Nc6 {[%clk 0:02:55]} 10. Nb5 {[%clk 0:02:50]}  Qe7 {[%clk 0:02:55]} 11. e5 {[%clk 0:02:50]}  dxe5 {[%clk 0:02:53]} 12. dxe5 {[%clk 0:02:49]}  O-O {[%clk 0:02:52]} 13. O-O {[%clk 0:02:47]}  c4 {[%clk 0:02:52]} 14. Be4 {[%clk 0:02:41]}  Qc5+ {[%clk 0:02:51]} 15. Nbd4 {[%clk 0:02:33]}  Bd7 {[%clk 0:02:48]} 16. Qe1 {[%clk 0:02:27]}  Rfd8 {[%clk 0:02:38]} 17. Rd1 {[%clk 0:02:25]}  Ne7 {[%clk 0:02:37]} 18. h3 {[%clk 0:02:19]}  Bc6 {[%clk 0:02:36]} 19. Ng3 {[%clk 0:02:15]}  Nf5 {[%clk 0:02:28]} 20. Nxf5 {[%clk 0:01:57]}  gxf5 {[%clk 0:02:26]} 21. Bf3 {[%clk 0:01:50]}  Bxf3 {[%clk 0:02:11]} 22. Rxf3 {[%clk 0:01:50]}  Kh7 {[%clk 0:02:12]} 23. Kh2 {[%clk 0:01:49]}  Bf8 {[%clk 0:02:02]} 24. g4 {[%clk 0:01:49]}  fxg4 {[%clk 0:01:57]} 25. hxg4 {[%clk 0:01:46]}  Be7 {[%clk 0:01:56]} 26. Qe4+ {[%clk 0:01:40]}  Kg7 {[%clk 0:01:56]} 27. f5 {[%clk 0:01:40]}  exf5 {[%clk 0:01:45]} 28. gxf5 {[%clk 0:01:38]}  Bg5 {[%clk 0:01:46]} 29. f6+ {[%clk 0:01:35]}  Kh8 {[%clk 0:01:45]} 30. Rg1 {[%clk 0:01:24]}  Rg8 {[%clk 0:01:43]} 31. Rh3 {[%clk 0:01:24]}  Bd2 {[%clk 0:01:31]} 32. Rxg8+ {[%clk 0:00:42]}  Rxg8 {[%clk 0:01:32]} 33. Rg3 {[%clk 0:00:36]}  Bg5 {[%clk 0:01:08]} 34. Kh3 {[%clk 0:00:30]}  Re8 {[%clk 0:00:59]} 35. Nf3 {[%clk 0:00:27]}  Qc8+ {[%clk 0:00:50]} 36. Kg2 {[%clk 0:00:21]}  Rg8 {[%clk 0:00:49]} 37. Nxg5 {[%clk 0:00:15]}  Rxg5 {[%clk 0:00:49]} 38. Rxg5 {[%clk 0:00:15]}  hxg5 {[%clk 0:00:50]} 39. Kg3 {[%clk 0:00:16]}  Qe6 {[%clk 0:00:41]} 40. Kf3 {[%clk 0:00:10]}  Qh3+ {[%clk 0:00:28]} 41. Kf2 {[%clk 0:00:10]}  Qh2+ {[%clk 0:00:27]} 42. Ke1 {[%clk 0:00:08]}  Qg1+ {[%clk 0:00:25]} 43. Kd2 {[%clk 0:00:08]}  Qh2+ {[%clk 0:00:23]} 44. Qe2 {[%clk 0:00:08]}  Qf4+ {[%clk 0:00:24]} 45. Qe3 {[%clk 0:00:08]}  Qf5 {[%clk 0:00:24]} 46. b3 {[%clk 0:00:05]}  b5 {[%clk 0:00:18]} 47. bxc4 {[%clk 0:00:05]}  bxc4 {[%clk 0:00:19]} 48. Kc1 {[%clk 0:00:05]}  Kh7 {[%clk 0:00:17]} 49. Kb2 {[%clk 0:00:05]}  Kg6 {[%clk 0:00:17]} 50. Ka3 {[%clk 0:00:04]}  Qd3 {[%clk 0:00:16]} 51. Qc1 {[%clk 0:00:02]}  a5 {[%clk 0:00:15]} 52. Ka4 {[%clk 0:00:02]}  g4 {[%clk 0:00:15]} 53. Kxa5 {[%clk 0:00:02]}  g3 {[%clk 0:00:15]} 54. Kb4 {[%clk 0:00:02]}  g2 {[%clk 0:00:15]} 55. Qg1 {[%clk 0:00:02]}  Qf3 {[%clk 0:00:15]} 56. Qb1+ {[%clk 0:00:02]}  Qf5 {[%clk 0:00:11]} 57. Qg1 {[%clk 0:00:02]}  Qf3 {[%clk 0:00:11]} 58. Qb1+ {[%clk 0:00:02]}  Kh6 {[%clk 0:00:10]} 59. Qc1+ {[%clk 0:00:02]}  Kh5 {[%clk 0:00:10]} 60. Qb1 {[%clk 0:00:02]}  Qd3 {[%clk 0:00:09]} 61. Qg1 {[%clk 0:00:02]}  Qe4 {[%clk 0:00:08]} 62. Qh2+ {[%clk 0:00:02]}  Kg4 {[%clk 0:00:08]} 63. Qh8 {[%clk 0:00:03]}  Kf3 {[%clk 0:00:07]} 64. Qh3+ {[%clk 0:00:02]}  Kf2 {[%clk 0:00:07]} 65. Qh2 {[%clk 0:00:03]}  Kf1 {[%clk 0:00:07]} 66. Qh3 {[%clk 0:00:03]}  Qd3 {[%clk 0:00:07]} 67. Qh5 {[%clk 0:00:02]}  g1=Q {[%clk 0:00:07]} 68. Qxf7 {[%clk 0:00:02]}  Qb6+ {[%clk 0:00:08]} 69. Ka4 {[%clk 0:00:01]}  Qc2+ {[%clk 0:00:08]} 70. Ka3 {[%clk 0:00:01]}  Qcb2+ {[%clk 0:00:09]} 71. Ka4 {[%clk 0:00:02]}  Qxa2# {[%clk 0:00:10]} 0-1


[Site "https://www.chess.com"]

[Event "Titled Tuesday Blitz August 16 Early 2022"]
[White "Janaszak, Dawid"]
[Black "Turzo, Attila"]
[WhiteFideId "1119206"]
[BlackFideId "704954"]
[WhiteElo "2165"]
[BlackElo "2298"]
[Result "1-0"]
[Round "08"]
[TimeControl "180+2"]
[Date "2022.08.18"]
[WhiteClock "0:00:00"]
[BlackClock "0:00:00"]

1. e4 {[%clk 0:00:00]}  e5 {[%clk 0:00:00]} 2. Nf3 {[%clk 0:00:00]}  Nc6 {[%clk 0:00:00]} 3. d4 {[%clk 0:00:00]}  exd4 {[%clk 0:00:00]} 4. Nxd4 {[%clk 0:00:00]}  Nf6 {[%clk 0:00:00]} 5. Nxc6 {[%clk 0:00:00]}  bxc6 {[%clk 0:00:00]} 6. e5 {[%clk 0:00:00]}  Qe7 {[%clk 0:00:00]} 7. Qe2 {[%clk 0:00:00]}  Nd5 {[%clk 0:00:00]} 8. h4 {[%clk 0:00:00]}  f6 {[%clk 0:00:00]} 9. c4 {[%clk 0:00:00]}  Nb4 {[%clk 0:00:00]} 10. a3 {[%clk 0:00:00]}  Na6 {[%clk 0:00:00]} 11. exf6 {[%clk 0:00:00]}  Qxe2+ {[%clk 0:00:00]} 12. Bxe2 {[%clk 0:00:00]}  gxf6 {[%clk 0:00:00]} 13. b4 {[%clk 0:00:00]}  Nb8 {[%clk 0:00:00]} 14. Bb2 {[%clk 0:00:00]}  Be7 {[%clk 0:00:00]} 15. Bh5+ {[%clk 0:00:00]}  Kd8 {[%clk 0:00:00]} 16. Nd2 {[%clk 0:00:00]}  a5 {[%clk 0:00:00]} 17. c5 {[%clk 0:00:00]}  d5 {[%clk 0:00:00]} 18. Nb3 {[%clk 0:00:00]}  axb4 {[%clk 0:00:00]} 19. axb4 {[%clk 0:00:00]}  Rxa1+ {[%clk 0:00:00]} 20. Nxa1 {[%clk 0:00:00]}  Nd7 {[%clk 0:00:00]} 21. Nc2 {[%clk 0:00:00]}  Ne5 {[%clk 0:00:00]} 22. O-O {[%clk 0:00:00]}  Bg4 {[%clk 0:00:00]} 23. Bxg4 {[%clk 0:00:00]}  Nxg4 {[%clk 0:00:00]} 24. Nd4 {[%clk 0:00:00]}  Kd7 {[%clk 0:00:00]} 25. Ra1 {[%clk 0:00:00]}  Rb8 {[%clk 0:00:00]} 26. Bc3 {[%clk 0:00:00]}  Ne5 {[%clk 0:00:00]} 27. Ra6 {[%clk 0:00:00]}  Nd3 {[%clk 0:00:00]} 28. Nxc6 {[%clk 0:00:00]}  Rb5 {[%clk 0:00:00]} 29. Nxe7 {[%clk 0:00:00]}  Kxe7 {[%clk 0:00:00]} 30. Rxf6 {[%clk 0:00:00]}  Nxb4 {[%clk 0:00:00]} 31. Rh6 {[%clk 0:00:00]}  Nd3 {[%clk 0:00:00]} 32. Rxh7+ {[%clk 0:00:00]}  Kd8 {[%clk 0:00:00]} 33. Bf6+ {[%clk 0:00:00]}  Kc8 {[%clk 0:00:00]} 34. c6 {[%clk 0:00:00]}  Kb8 {[%clk 0:00:00]} 35. Rh8+ {[%clk 0:00:00]}  Ka7 {[%clk 0:00:00]} 36. Bd4+ {[%clk 0:00:00]}  Nc5 {[%clk 0:00:00]} 37. h5 {[%clk 0:00:00]}  Kb6 {[%clk 0:00:00]} 38. h6 {[%clk 0:00:00]}  Kxc6 {[%clk 0:00:00]} 39. h7 {[%clk 0:00:00]}  Ne6 {[%clk 0:00:00]} 40. Rg8 {[%clk 0:00:00]}  Nxd4 {[%clk 0:00:00]} 41. h8=Q {[%clk 0:00:00]}  Rb4 {[%clk 0:00:00]} 42. Rg6+ {[%clk 0:00:00]} 1-0


[Site "https://www.chess.com"]

[Event "Titled Tuesday Blitz August 16 Early 2022"]
[White "Khusenkhojaev, Muhammad"]
[Black "Koniahli, Malek."]
[WhiteFideId "14700247"]
[BlackFideId "7603495"]
[WhiteElo "2180"]
[BlackElo "2097"]
[Result "0-1"]
[Round "08"]
[TimeControl "180+2"]
[Date "2022.08.18"]
[WhiteClock "0:00:00"]
[BlackClock "0:00:00"]

1. Nf3 {[%clk 0:00:00]}  Nf6 {[%clk 0:00:00]} 2. c4 {[%clk 0:00:00]}  e6 {[%clk 0:00:00]} 3. d4 {[%clk 0:00:00]}  d5 {[%clk 0:00:00]} 4. g3 {[%clk 0:00:00]}  Be7 {[%clk 0:00:00]} 5. Bg2 {[%clk 0:00:00]}  O-O {[%clk 0:00:00]} 6. O-O {[%clk 0:00:00]}  c6 {[%clk 0:00:00]} 7. Qc2 {[%clk 0:00:00]}  b6 {[%clk 0:00:00]} 8. Rd1 {[%clk 0:00:00]}  Bb7 {[%clk 0:00:00]} 9. b3 {[%clk 0:00:00]}  a5 {[%clk 0:00:00]} 10. Nc3 {[%clk 0:00:00]}  Na6 {[%clk 0:00:00]} 11. a3 {[%clk 0:00:00]}  Rc8 {[%clk 0:00:00]} 12. e4 {[%clk 0:00:00]}  c5 {[%clk 0:00:00]} 13. e5 {[%clk 0:00:00]}  Ne4 {[%clk 0:00:00]} 14. dxc5 {[%clk 0:00:00]}  Nxc3 {[%clk 0:00:00]} 15. Qxc3 {[%clk 0:00:00]}  Nxc5 {[%clk 0:00:00]} 16. Nd4 {[%clk 0:00:00]}  dxc4 {[%clk 0:00:00]} 17. bxc4 {[%clk 0:00:00]}  Bxg2 {[%clk 0:00:00]} 18. Kxg2 {[%clk 0:00:00]}  Qc7 {[%clk 0:00:00]} 19. Nb5 {[%clk 0:00:00]}  Qc6+ {[%clk 0:00:00]} 20. Qf3 {[%clk 0:00:00]}  Nb3 {[%clk 0:00:00]} 21. Rb1 {[%clk 0:00:00]}  Qxc4 {[%clk 0:00:00]} 22. Qxb3 {[%clk 0:00:00]}  Qe4+ {[%clk 0:00:00]} 23. Kg1 {[%clk 0:00:00]}  a4 {[%clk 0:00:00]} 24. Qd3 {[%clk 0:00:00]}  Qg4 {[%clk 0:00:00]} 25. Be3 {[%clk 0:00:00]}  Rfd8 {[%clk 0:00:00]} 26. Nd6 {[%clk 0:00:00]}  Bxd6 {[%clk 0:00:00]} 27. exd6 {[%clk 0:00:00]}  Rc6 {[%clk 0:00:00]} 28. Rxb6 {[%clk 0:00:00]}  Rc3 {[%clk 0:00:00]} 29. Qd4 {[%clk 0:00:00]}  Qf3 {[%clk 0:00:00]} 30. d7 {[%clk 0:00:00]}  h5 {[%clk 0:00:00]} 31. h4 {[%clk 0:00:00]}  Rc7 {[%clk 0:00:00]} 32. Rd6 {[%clk 0:00:00]}  Rc2 {[%clk 0:00:00]} 33. Qb6 {[%clk 0:00:00]}  Qa8 {[%clk 0:00:00]} 34. Bg5 {[%clk 0:00:00]}  f6 {[%clk 0:00:00]} 35. Rxe6 {[%clk 0:00:00]}  Kh7 {[%clk 0:00:00]} 36. Bxf6 {[%clk 0:00:00]}  Qf3 {[%clk 0:00:00]} 37. Red6 {[%clk 0:00:00]}  gxf6 {[%clk 0:00:00]} 38. Rf1 {[%clk 0:00:00]}  Rg8 {[%clk 0:00:00]} 39. Kh2 {[%clk 0:00:00]}  Rxg3 {[%clk 0:00:00]} 0-1


[Site "https://www.chess.com"]

[Event "Titled Tuesday Blitz August 16 Early 2022"]
[White "Kiseljova, Marya"]
[Black "Quirke, Jeffrey"]
[WhiteFideId "4155009"]
[BlackFideId "2013029"]
[WhiteElo "1697"]
[BlackElo "2048"]
[Result "1-0"]
[Round "08"]
[TimeControl "180+2"]
[Date "2022.08.18"]
[WhiteClock "0:00:00"]
[BlackClock "0:00:00"]

1. d4 {[%clk 0:00:00]}  d5 {[%clk 0:00:00]} 2. c4 {[%clk 0:00:00]}  e6 {[%clk 0:00:00]} 3. Nf3 {[%clk 0:00:00]}  dxc4 {[%clk 0:00:00]} 4. g3 {[%clk 0:00:00]}  c5 {[%clk 0:00:00]} 5. Qa4+ {[%clk 0:00:00]}  Bd7 {[%clk 0:00:00]} 6. Qxc4 {[%clk 0:00:00]}  b5 {[%clk 0:00:00]} 7. Qc2 {[%clk 0:00:00]}  c4 {[%clk 0:00:00]} 8. Bg2 {[%clk 0:00:00]}  Nc6 {[%clk 0:00:00]} 9. O-O {[%clk 0:00:00]}  Nb4 {[%clk 0:00:00]} 10. Qd1 {[%clk 0:00:00]}  Bc6 {[%clk 0:00:00]} 11. a3 {[%clk 0:00:00]}  Nd5 {[%clk 0:00:00]} 12. Ne5 {[%clk 0:00:00]}  Bb7 {[%clk 0:00:00]} 13. a4 {[%clk 0:00:00]}  a6 {[%clk 0:00:00]} 14. b3 {[%clk 0:00:00]}  cxb3 {[%clk 0:00:00]} 15. axb5 {[%clk 0:00:00]}  axb5 {[%clk 0:00:00]} 16. Rxa8 {[%clk 0:00:00]}  Qxa8 {[%clk 0:00:00]} 17. Qxb3 {[%clk 0:00:00]}  b4 {[%clk 0:00:00]} 18. Bb2 {[%clk 0:00:00]}  Ngf6 {[%clk 0:00:00]} 19. Nd2 {[%clk 0:00:00]}  Be7 {[%clk 0:00:00]} 20. Ra1 {[%clk 0:00:00]}  Qb8 {[%clk 0:00:00]} 21. e4 {[%clk 0:00:00]}  Nb6 {[%clk 0:00:00]} 22. Nec4 {[%clk 0:00:00]}  Nxc4 {[%clk 0:00:00]} 23. Qxc4 {[%clk 0:00:00]}  O-O {[%clk 0:00:00]} 24. h3 {[%clk 0:00:00]}  Rc8 {[%clk 0:00:00]} 25. Qb3 {[%clk 0:00:00]}  h5 {[%clk 0:00:00]} 26. f3 {[%clk 0:00:00]}  Qxg3 {[%clk 0:00:00]} 27. Ra7 {[%clk 0:00:00]}  Qb8 {[%clk 0:00:00]} 28. Qa4 {[%clk 0:00:00]}  Bf8 {[%clk 0:00:00]} 29. f4 {[%clk 0:00:00]}  Bc6 {[%clk 0:00:00]} 30. Qa2 {[%clk 0:00:00]}  Qb5 {[%clk 0:00:00]} 31. Bf1 {[%clk 0:00:00]}  Qb6 {[%clk 0:00:00]} 32. Nc4 {[%clk 0:00:00]}  Qd8 {[%clk 0:00:00]} 33. Nd2 {[%clk 0:00:00]}  Nxe4 {[%clk 0:00:00]} 34. Nc4 {[%clk 0:00:00]}  Nc3 {[%clk 0:00:00]} 35. Bxc3 {[%clk 0:00:00]}  bxc3 {[%clk 0:00:00]} 36. Ne5 {[%clk 0:00:00]}  Qxd4+ {[%clk 0:00:00]} 37. Kh2 {[%clk 0:00:00]}  Qd2+ {[%clk 0:00:00]} 38. Qxd2 {[%clk 0:00:00]}  cxd2 {[%clk 0:00:00]} 39. Be2 {[%clk 0:00:00]}  Be4 {[%clk 0:00:00]} 40. Nxf7 {[%clk 0:00:00]}  Rc1 {[%clk 0:00:00]} 41. Ng5 {[%clk 0:00:00]}  d1=Q {[%clk 0:00:00]} 42. Bxd1 {[%clk 0:00:00]}  Rxd1 {[%clk 0:00:00]} 43. Nxe4 {[%clk 0:00:00]}  Rd4 {[%clk 0:00:00]} 44. Ng5 {[%clk 0:00:00]}  Rxf4 {[%clk 0:00:00]} 45. Nxe6 {[%clk 0:00:00]}  Rf6 {[%clk 0:00:00]} 46. Nxf8 {[%clk 0:00:00]}  Rxf8 {[%clk 0:00:00]} 47. Ra5 {[%clk 0:00:00]}  g6 {[%clk 0:00:00]} 48. Ra7 {[%clk 0:00:00]}  Rf7 {[%clk 0:00:00]} 49. Ra6 {[%clk 0:00:00]}  Kg7 {[%clk 0:00:00]} 50. Kg3 {[%clk 0:00:00]}  Rb7 {[%clk 0:00:00]} 51. Rc6 {[%clk 0:00:00]}  Kh6 {[%clk 0:00:00]} 52. Ra6 {[%clk 0:00:00]}  Rb4 {[%clk 0:00:00]} 53. Rc6 {[%clk 0:00:00]}  h4+ {[%clk 0:00:00]} 54. Kg2 {[%clk 0:00:00]}  Rb3 {[%clk 0:00:00]} 55. Kh2 {[%clk 0:00:00]}  Kh5 {[%clk 0:00:00]} 56. Rc5+ {[%clk 0:00:00]}  g5 {[%clk 0:00:00]} 57. Ra5 {[%clk 0:00:00]}  Rb2+ {[%clk 0:00:00]} 58. Kg1 {[%clk 0:00:00]}  Re2 {[%clk 0:00:00]} 59. Kh1 {[%clk 0:00:00]}  Kg6 {[%clk 0:00:00]} 60. Rb5 {[%clk 0:00:00]}  Re4 {[%clk 0:00:00]} 61. Kg2 {[%clk 0:00:00]}  Kf6 {[%clk 0:00:00]} 62. Ra5 {[%clk 0:00:00]}  Re5 {[%clk 0:00:00]} 63. Ra6+ {[%clk 0:00:00]}  Kf5 {[%clk 0:00:00]} 64. Ra4 {[%clk 0:00:00]}  Re4 {[%clk 0:00:00]} 65. Ra5+ {[%clk 0:00:00]}  Kf4 {[%clk 0:00:00]} 66. Ra3 {[%clk 0:00:00]}  Rb4 {[%clk 0:00:00]} 67. Rc3 {[%clk 0:00:00]}  Rb2+ {[%clk 0:00:00]} 68. Kg1 {[%clk 0:00:00]}  Rb4 {[%clk 0:00:00]} 69. Kg2 {[%clk 0:00:00]}  Re4 {[%clk 0:00:00]} 70. Kf2 {[%clk 0:00:00]}  Rd4 {[%clk 0:00:00]} 71. Rf3+ {[%clk 0:00:00]}  Ke4 {[%clk 0:00:00]} 72. Re3+ {[%clk 0:00:00]}  Kf4 {[%clk 0:00:00]} 73. Rf3+ {[%clk 0:00:00]}  Ke5 {[%clk 0:00:00]} 74. Re3+ {[%clk 0:00:00]}  Re4 {[%clk 0:00:00]} 75. Ra3 {[%clk 0:00:00]}  Rf4+ {[%clk 0:00:00]} 76. Kg2 {[%clk 0:00:00]}  Rd4 {[%clk 0:00:00]} 77. Ra5+ {[%clk 0:00:00]}  Rd5 {[%clk 0:00:00]} 78. Ra3 {[%clk 0:00:00]}  Rd2+ {[%clk 0:00:00]} 79. Kf3 {[%clk 0:00:00]}  Rd4 {[%clk 0:00:00]} 80. Re3+ {[%clk 0:00:00]}  Kf5 {[%clk 0:00:00]} 81. Ra3 {[%clk 0:00:00]}  Rf4+ {[%clk 0:00:00]} 82. Kg2 {[%clk 0:00:00]}  Re4 {[%clk 0:00:00]} 83. Rf3+ {[%clk 0:00:00]}  Kg6 {[%clk 0:00:00]} 84. Ra3 {[%clk 0:00:00]}  Kh5 {[%clk 0:00:00]} 85. Rf3 {[%clk 0:00:00]}  Rf4 {[%clk 0:00:00]} 86. Ra3 {[%clk 0:00:00]}  Rb4 {[%clk 0:00:00]} 87. Rc3 {[%clk 0:00:00]}  Rb2+ {[%clk 0:00:00]} 88. Kf3 {[%clk 0:00:00]}  Rb4 {[%clk 0:00:00]} 89. Rd3 {[%clk 0:00:00]} 1-0


[Site "https://www.chess.com"]

[Event "Titled Tuesday Blitz August 16 Early 2022"]
[White "Koridze, Lile"]
[Black "Fier, Alexandr"]
[WhiteFideId "13612514"]
[BlackFideId "2107139"]
[WhiteElo "2081"]
[BlackElo "2572"]
[Result "0-1"]
[Round "08"]
[TimeControl "180+2"]
[Date "2022.08.18"]
[WhiteClock "0:00:00"]
[BlackClock "0:00:00"]

1. d4 {[%clk 0:00:00]}  Nf6 {[%clk 0:00:00]} 2. c4 {[%clk 0:00:00]}  a6 {[%clk 0:00:00]} 3. Nc3 {[%clk 0:00:00]}  c5 {[%clk 0:00:00]} 4. d5 {[%clk 0:00:00]}  b5 {[%clk 0:00:00]} 5. cxb5 {[%clk 0:00:00]}  axb5 {[%clk 0:00:00]} 6. Nxb5 {[%clk 0:00:00]}  g6 {[%clk 0:00:00]} 7. Nf3 {[%clk 0:00:00]}  Bg7 {[%clk 0:00:00]} 8. Nc3 {[%clk 0:00:00]}  O-O {[%clk 0:00:00]} 9. e3 {[%clk 0:00:00]}  Qa5 {[%clk 0:00:00]} 10. Bc4 {[%clk 0:00:00]}  Ba6 {[%clk 0:00:00]} 11. Bxa6 {[%clk 0:00:00]}  Qxa6 {[%clk 0:00:00]} 12. Qe2 {[%clk 0:00:00]}  d6 {[%clk 0:00:00]} 13. Qxa6 {[%clk 0:00:00]}  Rxa6 {[%clk 0:00:00]} 14. O-O {[%clk 0:00:00]}  Nbd7 {[%clk 0:00:00]} 15. Rd1 {[%clk 0:00:00]}  Nb6 {[%clk 0:00:00]} 16. e4 {[%clk 0:00:00]}  Nfd7 {[%clk 0:00:00]} 17. a3 {[%clk 0:00:00]}  Rb8 {[%clk 0:00:00]} 18. Bg5 {[%clk 0:00:00]}  Kf8 {[%clk 0:00:00]} 19. Nd2 {[%clk 0:00:00]}  Na4 {[%clk 0:00:00]} 20. Nc4 {[%clk 0:00:00]}  Nxb2 {[%clk 0:00:00]} 21. Nxb2 {[%clk 0:00:00]}  Bxc3 {[%clk 0:00:00]} 0-1


[Site "https://www.chess.com"]

[Event "Titled Tuesday Blitz August 16 Early 2022"]
[White "Kotepalli, Sai Nirupama"]
[Black "Eynullayev, Atilla"]
[WhiteFideId "5039444"]
[BlackFideId "13413570"]
[WhiteElo "1910"]
[BlackElo "2328"]
[Result "1-0"]
[Round "08"]
[TimeControl "180+2"]
[Date "2022.08.18"]
[WhiteClock "0:00:00"]
[BlackClock "0:00:00"]

1. e4 {[%clk 0:00:00]}  c5 {[%clk 0:00:00]} 2. Nf3 {[%clk 0:00:00]}  Nc6 {[%clk 0:00:00]} 3. d3 {[%clk 0:00:00]}  g6 {[%clk 0:00:00]} 4. g3 {[%clk 0:00:00]}  Bg7 {[%clk 0:00:00]} 5. Bg2 {[%clk 0:00:00]}  e6 {[%clk 0:00:00]} 6. O-O {[%clk 0:00:00]}  Nge7 {[%clk 0:00:00]} 7. c3 {[%clk 0:00:00]}  d5 {[%clk 0:00:00]} 8. Qe2 {[%clk 0:00:00]}  O-O {[%clk 0:00:00]} 9. e5 {[%clk 0:00:00]}  d4 {[%clk 0:00:00]} 10. c4 {[%clk 0:00:00]}  h6 {[%clk 0:00:00]} 11. h4 {[%clk 0:00:00]}  Qc7 {[%clk 0:00:00]} 12. Bf4 {[%clk 0:00:00]}  Rb8 {[%clk 0:00:00]} 13. Nbd2 {[%clk 0:00:00]}  a6 {[%clk 0:00:00]} 14. Ne4 {[%clk 0:00:00]}  Nxe5 {[%clk 0:00:00]} 15. Nxe5 {[%clk 0:00:00]}  Bxe5 {[%clk 0:00:00]} 16. Nf6+ {[%clk 0:00:00]}  Bxf6 {[%clk 0:00:00]} 17. Bxc7 {[%clk 0:00:00]}  Ra8 {[%clk 0:00:00]} 18. Bd6 {[%clk 0:00:00]}  Rd8 {[%clk 0:00:00]} 19. Bxc5 {[%clk 0:00:00]}  Rb8 {[%clk 0:00:00]} 20. Bb6 {[%clk 0:00:00]}  Re8 {[%clk 0:00:00]} 21. Rfe1 {[%clk 0:00:00]}  Bd7 {[%clk 0:00:00]} 22. Qd2 {[%clk 0:00:00]}  Kg7 {[%clk 0:00:00]} 23. Qf4 {[%clk 0:00:00]}  Nc6 {[%clk 0:00:00]} 24. Bxc6 {[%clk 0:00:00]}  Bxc6 {[%clk 0:00:00]} 25. Bxd4 {[%clk 0:00:00]}  Bxd4 {[%clk 0:00:00]} 26. Qxd4+ {[%clk 0:00:00]}  Kg8 {[%clk 0:00:00]} 27. Qf6 {[%clk 0:00:00]}  Rbd8 {[%clk 0:00:00]} 28. d4 {[%clk 0:00:00]}  b5 {[%clk 0:00:00]} 29. b3 {[%clk 0:00:00]}  bxc4 {[%clk 0:00:00]} 30. bxc4 {[%clk 0:00:00]}  Ba8 {[%clk 0:00:00]} 31. Rad1 {[%clk 0:00:00]}  Rc8 {[%clk 0:00:00]} 32. d5 {[%clk 0:00:00]}  exd5 {[%clk 0:00:00]} 33. cxd5 {[%clk 0:00:00]}  Rxe1+ {[%clk 0:00:00]} 34. Rxe1 {[%clk 0:00:00]}  Bxd5 {[%clk 0:00:00]} 35. Qxa6 {[%clk 0:00:00]}  Ra8 {[%clk 0:00:00]} 36. Qxa8+ {[%clk 0:00:00]}  Bxa8 {[%clk 0:00:00]} 37. Re8+ {[%clk 0:00:00]} 1-0


[Site "https://www.chess.com"]

[Event "Titled Tuesday Blitz August 16 Early 2022"]
[White "Kovacevic, Radmila"]
[Black "Ferriz Barrios, Andres"]
[WhiteFideId "933171"]
[BlackFideId "5104467"]
[WhiteElo "2157"]
[BlackElo "2102"]
[Result "0-1"]
[Round "08"]
[TimeControl "180+2"]
[Date "2022.08.18"]
[WhiteClock "0:00:00"]
[BlackClock "0:00:00"]

1. e4 {[%clk 0:00:00]}  e6 {[%clk 0:00:00]} 2. d4 {[%clk 0:00:00]}  d5 {[%clk 0:00:00]} 3. Nc3 {[%clk 0:00:00]}  dxe4 {[%clk 0:00:00]} 4. Nxe4 {[%clk 0:00:00]}  Nd7 {[%clk 0:00:00]} 5. Nf3 {[%clk 0:00:00]}  Ngf6 {[%clk 0:00:00]} 6. Ng3 {[%clk 0:00:00]}  b6 {[%clk 0:00:00]} 7. Bb5 {[%clk 0:00:00]}  Bb7 {[%clk 0:00:00]} 8. Bg5 {[%clk 0:00:00]}  Be7 {[%clk 0:00:00]} 9. O-O {[%clk 0:00:00]}  a6 {[%clk 0:00:00]} 10. Ba4 {[%clk 0:00:00]}  b5 {[%clk 0:00:00]} 11. Bb3 {[%clk 0:00:00]}  O-O {[%clk 0:00:00]} 12. Re1 {[%clk 0:00:00]}  Nd5 {[%clk 0:00:00]} 13. Bxe7 {[%clk 0:00:00]}  Qxe7 {[%clk 0:00:00]} 14. a4 {[%clk 0:00:00]}  Qf6 {[%clk 0:00:00]} 15. Ne4 {[%clk 0:00:00]}  Qh6 {[%clk 0:00:00]} 16. Qd2 {[%clk 0:00:00]}  Nf4 {[%clk 0:00:00]} 17. Kh1 {[%clk 0:00:00]}  Nf6 {[%clk 0:00:00]} 18. Nxf6+ {[%clk 0:00:00]}  Qxf6 {[%clk 0:00:00]} 19. Re3 {[%clk 0:00:00]}  Qg6 {[%clk 0:00:00]} 20. Rg1 {[%clk 0:00:00]}  Rfd8 {[%clk 0:00:00]} 21. Rc3 {[%clk 0:00:00]}  Qg4 {[%clk 0:00:00]} 22. Qe3 {[%clk 0:00:00]}  bxa4 {[%clk 0:00:00]} 23. Ba2 {[%clk 0:00:00]}  Bd5 {[%clk 0:00:00]} 24. Bb1 {[%clk 0:00:00]}  Ng6 {[%clk 0:00:00]} 25. Rxc7 {[%clk 0:00:00]}  Rac8 {[%clk 0:00:00]} 26. Ne5 {[%clk 0:00:00]}  Nxe5 {[%clk 0:00:00]} 27. Rxc8 {[%clk 0:00:00]}  Rxc8 {[%clk 0:00:00]} 28. dxe5 {[%clk 0:00:00]}  h5 {[%clk 0:00:00]} 29. c3 {[%clk 0:00:00]}  Rb8 {[%clk 0:00:00]} 30. f3 {[%clk 0:00:00]}  Qh4 {[%clk 0:00:00]} 31. Qd2 {[%clk 0:00:00]}  a3 {[%clk 0:00:00]} 32. bxa3 {[%clk 0:00:00]}  Qc4 {[%clk 0:00:00]} 33. Re1 {[%clk 0:00:00]}  Qa4 {[%clk 0:00:00]} 34. Qd3 {[%clk 0:00:00]}  g6 {[%clk 0:00:00]} 0-1


[Site "https://www.chess.com"]